fUSD/lending_fUSD_20260219
["ID","MTS","AMOUNT","RATE_DAILY","PERIOD"]
[405963951,1771463446971,-200.0,0.00010959,2]
[405963952,1771463446980,-150.0,0.00010959,2]
[405963953,1771463446989,-4249.6226521,0.00010959,2]
[405963954,1771463447007,-10657.2673479,0.00010959,2]
[405963955,1771463447016,-150.0,0.00010959,2]
[405963956,1771463447026,-166.66,0.00010959,2]
[405963957,1771463447040,-166.66,0.00011041,2]
[405963958,1771463447049,-166.66,0.00011068,2]
[405963959,1771463447059,-70205.14641081,0.00011099,2]
[405963960,1771463447070,-51799.33934076,0.00011099,2]
[405963961,1771463447096,-3800.30205689,0.00011099,2]
[405963962,1771463447108,-411.11969778,0.00011099,2]
[405963963,1771463447119,-1893.12,0.00011099,2]
[405963964,1771463447371,-6527.5,0.00011099,2]
[405963965,1771463447382,-754.30019884,0.00011099,2]
[405963966,1771464175232,870.66,0.00018,30]
[405963967,1771464220743,439.62,5e-05,2]
[405964002,1771464632346,-222.0,8.615e-05,2]
[405964004,1771464632356,-155.81,8.615e-05,2]
[405964007,1771464632368,-155.81,8.995e-05,2]
[405964009,1771464632377,-300.0,9.302e-05,2]
[405964011,1771464632389,-870.0,9.303e-05,2]
[405964012,1771464632400,-150.05175774,9.303e-05,2]
[405964013,1771464632464,-149.94824226,9.303e-05,2]
[405964014,1771464632474,-300.0,9.303e-05,2]
[405964015,1771464632483,-1200.0,9.303e-05,2]
[405964016,1771464632493,-300.0,9.303e-05,2]
[405964017,1771464632503,-1855.78105038,9.304e-05,2]
[405964018,1771464632515,-20098.81405358,9.304e-05,2]
[405964019,1771464632524,-184.19430672,9.304e-05,2]
[405964020,1771464632533,-175.586387,9.362e-05,2]
[405964021,1771464632771,-578.20924308,9.362e-05,2]
[405964022,1771464632781,-155.81,9.375e-05,2]
[405964023,1771464632790,-252.08348862,9.477e-05,2]
[405964024,1771464632801,-155.81,9.755e-05,2]
[405964025,1771464632811,-600.0,9.857e-05,2]
[405964026,1771464632821,-266.53,9.857e-05,2]
[405964027,1771464632831,-369.89,9.864e-05,2]
[405964028,1771464632840,-200.66,9.864e-05,2]
[405964029,1771464632850,-184.19430672,9.942e-05,2]
[405964030,1771464632860,-150.0,0.00010033,2]
[405964031,1771464632870,-174.61919141,0.00010034,2]
[405964032,1771464632880,-277.35679052,0.00010034,2]
[405964033,1771464632889,-151.0,0.00010034,2]
[405964034,1771464632898,-209.40437684,0.00010034,2]
[405964035,1771464632908,-693.3919763,0.00010034,2]
[405964036,1771464632918,-1500.0,0.0001004,2]
[405964037,1771464632928,-200.0,0.00010088,2]
[405964038,1771464632937,-151.0,0.00010089,2]
[405964039,1771464632947,-719.04747942,0.00010089,2]
[405964040,1771464632958,-155.81,0.00010135,2]
[405964041,1771464632967,-9999.99,0.00010135,2]
[405964042,1771464632977,-151.0,0.00010144,2]
[405964043,1771464632987,-745.65223616,0.00010144,2]
[405964044,1771464632996,-151.0,0.00010199,2]
[405964045,1771464633006,-773.2413689,0.00010199,2]
[405964046,1771464633016,-420.0,0.00010232,2]
[405964047,1771464633025,-300.0,0.00010233,2]
[405964048,1771464633035,-420.0,0.00010233,2]
[405964049,1771464633044,-1680.0,0.00010233,2]
[405964050,1771464633053,-151.0,0.00010254,2]
[405964051,1771464633062,-801.85129955,0.00010254,2]
[405964052,1771464633071,-150.99,0.00010258,2]
[405964053,1771464633080,-1000.0,0.00010265,2]
[405964054,1771464633089,-151.0,0.00010309,2]
[405964055,1771464633099,-831.51979763,0.00010309,2]
[405964056,1771464633109,-207.7658279,0.00010331,2]
[405964057,1771464633119,-373.97849023,0.00010331,2]
[405964058,1771464633128,-151.0,0.00010364,2]
[405964059,1771464633137,-862.28603014,0.00010364,2]
[405964060,1771464633146,-500.0,0.00010419,2]
[405964061,1771464633155,-151.0,0.00010419,2]
[405964062,1771464633165,-894.19061326,0.00010419,2]
[405964063,1771464633174,-500.0,0.00010426,2]
[405964064,1771464633183,-231.29126378,0.00010474,2]
[405964065,1771464633192,-927.27566595,0.00010474,2]
[405964066,1771464633202,-184.19430672,0.00010479,2]
[405964067,1771464633211,-500.0,0.00010481,2]
[405964068,1771464633220,-500.0,0.00010524,2]
[405964069,1771464633230,-500.0,0.00010524,2]
[405964070,1771464633240,-150.0,0.00010524,2]
[405964071,1771464633249,-150.0,0.00010524,2]
[405964072,1771464633258,-500.0,0.00010524,2]
[405964073,1771464633269,-500.0,0.00010524,2]
[405964074,1771464633278,-500.0,0.00010524,2]
[405964075,1771464633288,-150.0,0.00010524,2]
[405964076,1771464633297,-961.58486559,0.00010529,2]
[405964077,1771464633306,-500.0,0.00010536,2]
[405964078,1771464633315,-637.03414977,0.00010579,2]
[405964079,1771464633331,-500.0,0.00010579,2]
[405964080,1771464633340,-200.0,0.00010579,2]
[405964081,1771464633350,-500.0,0.00010579,2]
[405964082,1771464633359,-500.0,0.00010579,2]
[405964083,1771464633372,-500.0,0.00010579,2]
[405964084,1771464633381,-181.08010149,0.00010582,2]
[405964085,1771464633390,-287.61899177,0.00010582,2]
[405964086,1771464633399,-217.15233878,0.00010582,2]
[405964087,1771464633408,-997.16350561,0.00010584,2]
[405964088,1771464633418,-500.0,0.0001059,2]
[405964089,1771464633428,-1582.1457329,0.000106,2]
[405964090,1771464633437,-500.0,0.00010634,2]
[405964091,1771464633446,-500.0,0.00010634,2]
[405964092,1771464633456,-500.0,0.00010634,2]
[405964093,1771464633465,-500.0,0.00010634,2]
[405964094,1771464633475,-500.0,0.00010645,2]
[405964095,1771464633484,-500.0,0.00010688,2]
[405964096,1771464633493,-500.0,0.00010688,2]
[405964097,1771464633503,-393.0,0.00010688,2]
[405964098,1771464633512,-500.0,0.00010688,2]
[405964099,1771464633522,-500.0,0.00010693,2]
[405964100,1771464633531,-500.0,0.000107,2]
[405964101,1771464633540,-620.77454888,0.000107,2]
[405964102,1771464633549,-269.09940998,0.000107,2]
[405964103,1771464633559,-541.33958134,0.000107,2]
[405964104,1771464633568,-158.30449972,0.000107,2]
[405964105,1771464633579,-6361.88908479,0.000107,2]
[405964106,1771464633588,-301.06514857,0.000107,2]
[405964107,1771464633597,-2302.67381183,0.000107,2]
[405964108,1771464633606,-500.0,0.0001073,2]
[405964109,1771464633615,-150.0,0.0001073,2]
[405964110,1771464633625,-500.0,0.00010743,2]
[405964111,1771464633634,-500.0,0.00010743,2]
[405964112,1771464633643,-577.07562476,0.00010743,2]
[405964113,1771464633653,-410.12713526,0.00010755,2]
[405964114,1771464633663,-6182.0,0.00010767,2]
[405964115,1771464633672,-150.0,0.00010772,2]
[405964116,1771464633682,-166.00545754,0.00010776,2]
[405964117,1771464633691,-500.0,0.00010776,2]
[405964118,1771464633700,-500.0,0.00010776,2]
[405964119,1771464633710,-721.12765535,0.00010776,2]
[405964120,1771464633719,-151.0,0.00010776,2]
[405964121,1771464633729,-151.0,0.00010776,2]
[405964122,1771464633739,-500.0,0.00010776,2]
[405964123,1771464633748,-151.0,0.00010776,2]
[405964124,1771464633757,-200.0,0.00010776,2]
[405964125,1771464633768,-500.0,0.00010776,2]
[405964126,1771464633777,-250.0,0.00010776,2]
[405964127,1771464633787,-500.0,0.00010776,2]
[405964128,1771464633797,-151.0,0.00010776,2]
[405964129,1771464633806,-151.0,0.00010776,2]
[405964130,1771464633815,-250.0,0.00010776,2]
[405964131,1771464633825,-500.0,0.00010776,2]
[405964132,1771464633834,-151.0,0.00010776,2]
[405964133,1771464633843,-151.0,0.00010776,2]
[405964134,1771464633853,-250.0,0.00010776,2]
[405964135,1771464633865,-500.0,0.00010776,2]
[405964136,1771464633874,-151.0,0.00010776,2]
[405964137,1771464633883,-151.0,0.00010776,2]
[405964138,1771464633893,-250.0,0.00010776,2]
[405964139,1771464633902,-500.0,0.00010776,2]
[405964140,1771464633911,-151.0,0.00010776,2]
[405964141,1771464633920,-151.0,0.00010776,2]
[405964142,1771464633930,-500.0,0.00010776,2]
[405964143,1771464633939,-250.0,0.00010776,2]
[405964144,1771464633948,-500.0,0.00010776,2]
[405964145,1771464633958,-151.0,0.00010776,2]
[405964146,1771464633967,-500.0,0.00010776,2]
[405964147,1771464633976,-250.0,0.00010776,2]
[405964148,1771464633985,-500.0,0.00010776,2]
[405964149,1771464633995,-151.0,0.00010776,2]
[405964150,1771464634005,-151.0,0.00010776,2]
[405964151,1771464634014,-500.0,0.00010776,2]
[405964152,1771464634023,-250.0,0.00010776,2]
[405964153,1771464634032,-151.0,0.00010776,2]
[405964154,1771464634041,-500.0,0.00010776,2]
[405964155,1771464634050,-151.0,0.00010776,2]
[405964156,1771464634060,-500.0,0.00010776,2]
[405964157,1771464634069,-255.07259394,0.00010776,2]
[405964158,1771464634079,-151.0,0.00010776,2]
[405964159,1771464634089,-151.0,0.00010776,2]
[405964160,1771464634098,-500.0,0.00010776,2]
[405964161,1771464634108,-500.0,0.00010776,2]
[405964162,1771464634117,-151.0,0.00010776,2]
[405964163,1771464634127,-500.0,0.00010776,2]
[405964164,1771464634136,-151.0,0.00010776,2]
[405964165,1771464634146,-500.0,0.00010776,2]
[405964166,1771464634156,-151.0,0.00010776,2]
[405964167,1771464634165,-500.0,0.00010776,2]
[405964168,1771464634175,-151.0,0.00010776,2]
[405964169,1771464634184,-151.0,0.00010776,2]
[405964170,1771464634193,-500.0,0.00010776,2]
[405964171,1771464634202,-500.0,0.00010776,2]
[405964172,1771464634212,-151.0,0.00010776,2]
[405964173,1771464634221,-151.0,0.00010776,2]
[405964174,1771464634230,-151.0,0.00010776,2]
[405964175,1771464634239,-151.0,0.00010776,2]
[405964176,1771464634249,-151.0,0.00010776,2]
[405964177,1771464634258,-151.0,0.00010776,2]
[405964178,1771464634268,-500.0,0.00010776,2]
[405964179,1771464634277,-151.0,0.00010776,2]
[405964180,1771464634287,-151.0,0.00010776,2]
[405964181,1771464634296,-250.0,0.00010776,2]
[405964182,1771464634305,-288.82629962,0.00010776,2]
[405964183,1771464634315,-1000.0,0.00010776,2]
[405964184,1771464634329,-1000.0,0.00010776,2]
[405964185,1771464634339,-200.0,0.00010776,2]
[405964186,1771464634349,-1000.0,0.00010776,2]
[405964187,1771464634359,-1000.0,0.00010776,2]
[405964188,1771464634370,-1000.0,0.00010776,2]
[405964189,1771464634381,-271.20106158,0.00010776,2]
[405964190,1771464634391,-162.380719,0.00010776,2]
[405964191,1771464634402,-500.0,0.00010776,2]
[405964192,1771464634412,-500.0,0.00010776,2]
[405964193,1771464634422,-500.0,0.00010776,2]
[405964194,1771464634432,-500.0,0.00010776,2]
[405964195,1771464634443,-500.0,0.00010776,2]
[405964196,1771464634454,-500.0,0.00010776,2]
[405964197,1771464634464,-500.0,0.00010776,2]
[405964198,1771464634475,-500.0,0.00010776,2]
[405964199,1771464634485,-500.0,0.00010776,2]
[405964200,1771464634494,-500.0,0.00010776,2]
[405964201,1771464634503,-500.0,0.00010776,2]
[405964202,1771464634513,-500.0,0.00010776,2]
[405964203,1771464634524,-500.0,0.00010776,2]
[405964204,1771464634535,-500.0,0.00010776,2]
[405964205,1771464634546,-500.0,0.00010776,2]
[405964206,1771464634557,-500.0,0.00010776,2]
[405964207,1771464634569,-500.0,0.00010776,2]
[405964208,1771464634580,-500.0,0.00010776,2]
[405964209,1771464634590,-500.0,0.00010776,2]
[405964210,1771464634600,-500.0,0.00010776,2]
[405964211,1771464634609,-500.0,0.00010785,2]
[405964212,1771464634618,-219.40971288,0.00010798,2]
[405964213,1771464634627,-408.62139134,0.00010798,2]
[405964214,1771464634636,-500.0,0.00010798,2]
[405964215,1771464634646,-500.0,0.00010798,2]
[405964216,1771464634655,-500.0,0.00010798,2]
[405964217,1771464634664,-500.0,0.00010798,2]
[405964218,1771464634674,-500.0,0.00010798,2]
[405964219,1771464634683,-438.92684529,0.00010798,2]
[405964220,1771464634693,-500.0,0.00010798,2]
[405964221,1771464634702,-500.0,0.00010798,2]
[405964222,1771464634711,-500.0,0.00010798,2]
[405964223,1771464634720,-500.0,0.00010798,2]
[405964224,1771464634730,-500.0,0.00010798,2]
[405964225,1771464634740,-500.0,0.00010798,2]
[405964226,1771464634750,-500.0,0.00010798,2]
[405964227,1771464634759,-500.0,0.00010798,2]
[405964228,1771464634769,-500.0,0.00010798,2]
[405964229,1771464634778,-500.0,0.00010798,2]
[405964230,1771464634788,-500.0,0.00010798,2]
[405964231,1771464634797,-500.0,0.00010798,2]
[405964232,1771464634806,-500.0,0.00010798,2]
[405964233,1771464634816,-500.0,0.00010798,2]
[405964234,1771464634825,-500.0,0.00010798,2]
[405964235,1771464634835,-500.0,0.00010798,2]
[405964236,1771464634844,-500.0,0.00010798,2]
[405964237,1771464634854,-500.0,0.00010798,2]
[405964238,1771464634863,-500.0,0.00010798,2]
[405964239,1771464634872,-500.0,0.00010798,2]
[405964240,1771464634882,-500.0,0.00010798,2]
[405964241,1771464634890,-500.0,0.00010798,2]
[405964242,1771464634900,-500.0,0.00010798,2]
[405964243,1771464634909,-500.0,0.00010798,2]
[405964244,1771464634918,-500.0,0.00010798,2]
[405964245,1771464634927,-500.0,0.00010798,2]
[405964246,1771464634936,-500.0,0.00010798,2]
[405964247,1771464634946,-500.0,0.00010798,2]
[405964248,1771464634955,-500.0,0.00010798,2]
[405964249,1771464634964,-500.0,0.00010798,2]
[405964250,1771464634974,-500.0,0.00010798,2]
[405964251,1771464634983,-500.0,0.00010798,2]
[405964252,1771464634993,-500.0,0.00010798,2]
[405964253,1771464635002,-500.0,0.00010798,2]
[405964254,1771464635011,-500.0,0.00010798,2]
[405964255,1771464635021,-500.0,0.00010798,2]
[405964256,1771464635031,-500.0,0.00010798,2]
[405964257,1771464635039,-500.0,0.00010798,2]
[405964258,1771464635049,-500.0,0.00010798,2]
[405964259,1771464635058,-500.0,0.00010798,2]
[405964260,1771464635067,-500.0,0.00010798,2]
[405964261,1771464635076,-500.0,0.00010798,2]
[405964262,1771464635086,-500.0,0.00010798,2]
[405964263,1771464635097,-500.0,0.00010798,2]
[405964264,1771464635109,-500.0,0.00010798,2]
[405964265,1771464635119,-500.0,0.00010798,2]
[405964266,1771464635129,-500.0,0.00010798,2]
[405964267,1771464635139,-500.0,0.00010798,2]
[405964268,1771464635148,-500.0,0.00010798,2]
[405964269,1771464635159,-500.0,0.00010798,2]
[405964270,1771464635170,-500.0,0.00010798,2]
[405964271,1771464635180,-500.0,0.00010798,2]
[405964272,1771464635190,-500.0,0.00010798,2]
[405964273,1771464635201,-500.0,0.00010798,2]
[405964274,1771464635210,-500.0,0.00010798,2]
[405964275,1771464635219,-500.0,0.00010798,2]
[405964276,1771464635228,-500.0,0.00010798,2]
[405964277,1771464635237,-500.0,0.00010798,2]
[405964278,1771464635247,-500.0,0.00010798,2]
[405964279,1771464635255,-500.0,0.00010798,2]
[405964280,1771464635265,-500.0,0.00010798,2]
[405964281,1771464635275,-500.0,0.00010798,2]
[405964282,1771464635284,-500.0,0.00010798,2]
[405964283,1771464635293,-196.51080716,0.00010798,2]
[405964284,1771464635302,-500.0,0.00010798,2]
[405964285,1771464635311,-500.0,0.00010798,2]
[405964286,1771464635321,-500.0,0.00010798,2]
[405964287,1771464635333,-500.0,0.00010798,2]
[405964288,1771464635342,-500.0,0.00010798,2]
[405964289,1771464635351,-500.0,0.00010798,2]
[405964290,1771464635359,-500.0,0.00010798,2]
[405964291,1771464635371,-500.0,0.00010798,2]
[405964292,1771464635380,-500.0,0.00010798,2]
[405964293,1771464635389,-500.0,0.00010798,2]
[405964294,1771464635400,-500.0,0.00010798,2]
[405964295,1771464635409,-500.0,0.00010798,2]
[405964296,1771464635419,-500.0,0.00010798,2]
[405964297,1771464635428,-500.0,0.00010798,2]
[405964298,1771464635437,-500.0,0.00010798,2]
[405964299,1771464635446,-311.60851346,0.00010798,2]
[405964300,1771464635456,-500.0,0.00010798,2]
[405964301,1771464635465,-500.0,0.00010798,2]
[405964302,1771464635474,-500.0,0.00010798,2]
[405964303,1771464635483,-500.0,0.00010798,2]
[405964304,1771464635493,-1458.7,0.00010798,2]
[405964305,1771464635503,-184.237,0.00010798,2]
[405964306,1771464635515,-504.6,0.00010798,2]
[405964307,1771464635525,-1030.93366702,0.000108,2]
[405964308,1771464635534,-292.9560483,0.00010819,2]
[405964309,1771464635543,-500.0,0.0001084,2]
[405964310,1771464635552,-122.20447756,0.00010853,2]
[405964311,1771464635568,-337.31721975,0.00010853,2]
[405964312,1771464635578,-500.0,0.00010853,2]
[405964313,1771464635587,-500.0,0.00010894,2]
[405964314,1771464635596,-10000.0,0.00010899,2]
[405964315,1771464635605,-1278.1228,0.00010899,2]
[405964316,1771464635614,-2500.0,0.00010899,2]
[405964317,1771464635623,-3852.93329582,0.000109,2]
[405964318,1771464635634,-500.0,0.00010908,2]
[405964319,1771464635643,-151.0,0.00010946,2]
[405964320,1771464635653,-500.0,0.00010949,2]
[405964321,1771464635662,-150.0,0.00010949,2]
[405964322,1771464635671,-500.0,0.00010949,2]
[405964323,1771464635680,-500.0,0.00010949,2]
[405964324,1771464635690,-500.0,0.00010949,2]
[405964325,1771464635699,-500.0,0.00010949,2]
[405964326,1771464635708,-150.0,0.00010959,2]
[405964327,1771464635717,-150.0,0.00010959,2]
[405964328,1771464635727,-500.0,0.00010962,2]
[405964329,1771464635737,-193.4694086,0.00010967,2]
[405964330,1771464635746,-9452.37121348,0.00011,2]
[405964331,1771464635755,-500.0,0.00011004,2]
[405964332,1771464635764,-150.0,0.00011004,2]
[405964333,1771464635773,-500.0,0.00011004,2]
[405964334,1771464635782,-500.0,0.00011004,2]
[405964335,1771464635791,-500.0,0.00011004,2]
[405964336,1771464635801,-500.0,0.00011004,2]
[405964337,1771464635810,-151.0,0.00011008,2]
[405964338,1771464635820,-153.83106779,0.00011008,2]
[405964339,1771464635829,-200.0,0.00011009,2]
[405964340,1771464635838,-200.0,0.0001101,2]
[405964341,1771464635847,-5463.34046082,0.00011011,2]
[405964342,1771464635859,-46800.19976616,0.00011011,2]
[405964343,1771464635870,-644.83,0.00011011,2]
[405964358,1771464638502,-526600.40455519,0.00011011,2]
[405964359,1771464638514,-17434.3958712,0.00011011,2]
[405964360,1771464638525,-2769.03984153,0.00011011,2]
[405964361,1771464638535,-500.0,0.00011017,2]
[405964362,1771464638544,-255.0,0.00011036,2]
[405964363,1771464638553,-331.81351739,0.00011059,2]
[405964364,1771464638658,-168.18648261,0.00011059,2]
[405964365,1771464638668,-150.0,0.00011059,2]
[405964366,1771464638678,-539.45860864,0.00011059,2]
[405964367,1771464638688,-245.19003278,0.00011059,2]
[405964368,1771464638697,-318.3983805,0.00011059,2]
[405964369,1771464638707,-533.52599711,0.00011059,2]
[405964370,1771464638716,-500.0,0.00011072,2]
[405964371,1771464638726,-504.6,0.00011072,2]
[405964372,1771464638735,-11202.43433504,0.00011099,2]
[405964373,1771464638747,-716.55581063,0.00011099,2]
[405964374,1771464638758,-1634.19576043,0.00011099,2]
[405964396,1771464640688,-43112.87773422,0.00011099,2]
[405964397,1771464640698,-151.0,0.00011099,2]
[405964398,1771464640707,-379.96947076,0.00011099,2]
[405964399,1771464640717,-200.0,0.00011099,2]
[405964400,1771464640726,-200.0,0.00011099,2]
[405964401,1771464640735,-330.08,0.00011105,2]
[405964402,1771464640744,-500.0,0.00011113,2]
[405964403,1771464640753,-262.44440465,0.00011113,2]
[405964404,1771464640762,-150.0,0.00011122,14]
[405964405,1771464640771,-500.0,0.00011127,2]
[405964406,1771464640780,-187.78006525,0.0001113,2]
[405964407,1771464640789,-298.26089446,0.0001113,2]
[405964408,1771464640799,-225.18697532,0.0001113,2]
[405964409,1771464640808,-169227.3513549,0.00011133,2]
[405964417,1771464644014,-1010.66461916,0.00011133,2]
[405964418,1771464644026,-998.9063611,0.00011133,2]
[405964419,1771464644701,-5530.0,0.00011133,2]
[405964420,1771464645375,-1650.0,0.00010699,2]
[405964424,1771464645681,-850.0,0.00010699,2]
[405964425,1771464645690,-3215.91036484,0.00011133,2]
[405964426,1771464645699,-342.15950245,0.00011133,2]
[405964427,1771464645709,-151.0,0.00011133,2]
[405964428,1771464645718,-252.41836875,0.00011168,2]
[405964429,1771464645727,-166.66,0.00011178,2]
[405964430,1771464645737,-500.0,0.00011182,2]
[405964431,1771464645746,-200.0,0.0001121,2]
[405964432,1771464645755,-200.0,0.0001121,2]
[405964433,1771464645764,-150.0,0.00011233,2]
[405964434,1771464645773,-15111.42,0.00011233,2]
[405964435,1771464645782,-500.0,0.00011236,2]
[405964436,1771464645791,-587.0,0.00011255,2]
[405964437,1771464645800,-587.0,0.00011257,2]
[405964438,1771464645809,-1994.89281745,0.00011257,2]
[405964439,1771464645823,-356.10718255,0.00011257,2]
[405964440,1771464645833,-166.66,0.00011288,2]
[405964441,1771464645843,-500.0,0.00011291,2]
[405964442,1771464645853,-200.0,0.00011322,2]
[405964443,1771464645862,-200.0,0.00011322,2]
[405964444,1771464645871,-200.0,0.00011324,2]
[405964445,1771464645880,-539.13796622,0.00011324,2]
[405964446,1771464645889,-500.0,0.00011346,2]
[405964447,1771464645898,-504.6,0.00011346,2]
[405964448,1771464645907,-166.66,0.00011372,2]
[405964449,1771464645915,-166.66,0.00011397,2]
[405964450,1771464645925,-492.84004684,0.00011401,2]
[405964451,1771464645934,-5391.96318891,0.00011426,2]
[405964452,1771464645947,-6456.76566377,0.00011426,2]
[405964453,1771464645961,-9219.2,0.00011426,2]
[405964454,1771464645975,-2833.845,0.00011426,2]
[405964455,1771464645987,-8951.43724732,0.00011426,2]
[405964456,1771464645996,-1000.0,0.00011426,2]
[405964457,1771464646005,-200.0,0.00011435,2]
[405964458,1771464646014,-200.0,0.00011435,2]
[405964459,1771464646023,-56666.06364024,0.000115,2]
[405964460,1771464646033,-166.66,0.00011507,2]
[405964461,1771464646042,-151.0,0.00011526,2]
[405964462,1771464646051,-352.373882,0.00011526,2]
[405964463,1771464646060,-352.373882,0.00011526,2]
[405964464,1771464646070,-352.373882,0.00011526,2]
[405964465,1771464646078,-352.373882,0.00011526,2]
[405964466,1771464646087,-151.0,0.00011526,2]
[405964467,1771464646097,-918.603616,0.00011526,2]
[405964468,1771464646106,-918.603616,0.00011526,2]
[405964469,1771464646116,-918.603616,0.00011526,2]
[405964470,1771464646125,-918.603616,0.00011526,2]
[405964471,1771464646134,-151.0,0.00011526,2]
[405964472,1771464646144,-1000.0,0.00011548,2]
[405964473,1771464646153,-200.0,0.0001155,2]
[405964474,1771464646162,-200.0,0.0001155,2]
[405964475,1771464646171,-330.08,0.0001161,2]
[405964476,1771464646180,-504.6,0.0001162,2]
[405964477,1771464646190,-194.72792766,0.00011678,2]
[405964478,1771464646199,-309.29654756,0.00011678,2]
[405964479,1771464646209,-233.51889341,0.00011678,2]
[405964480,1771464646218,-166.66,0.00011704,2]
[405964481,1771464646227,-3852.93329581,0.00011729,2]
[405964483,1771464646237,-200.0,0.00011872,2]
[405964484,1771464646246,-504.63554685,0.00011894,2]
[405964485,1771464646256,-301.06514855,0.000119,2]
[405964486,1771464646265,-174.5444226,0.00012,2]
[405964487,1771464646274,-1600.0,0.00012037,2]
[405964488,1771464646284,-599.60298507,0.00012101,2]
[405964489,1771464646293,-330.08,0.00012115,2]
[405964490,1771464646302,-433.0,0.0001214,2]
[405964491,1771464646312,-168.3888056,0.00012145,2]
[405964492,1771464646321,-201.93286099,0.00012226,2]
[405964493,1771464646336,-320.74051982,0.00012226,2]
[405964494,1771464646346,-242.15909246,0.00012226,2]
[405964495,1771464646355,-730.88934631,0.0001229,2]
[405964496,1771464646365,-56666.06364024,0.000123,2]
[405964497,1771464646377,-10569.24,0.00012304,2]
[405964498,1771464646387,-687.0,0.00012381,2]
[405964499,1771464646396,-823.0,0.00012382,2]
[405964500,1771464646406,-3292.0,0.00012382,2]
[405964501,1771464646416,-200.0,0.0001242,2]
[405964502,1771464646425,-308.43277492,0.000125,2]
[405964503,1771464646435,-2000.0,0.000125,2]
[405964504,1771464646445,-352.373882,0.00012517,2]
[405964505,1771464646454,-352.373882,0.00012517,2]
[405964506,1771464646464,-352.373882,0.00012517,2]
[405964507,1771464646472,-352.373882,0.00012517,2]
[405964508,1771464646483,-918.603616,0.00012619,2]
[405964509,1771464646494,-918.603616,0.00012619,2]
[405964510,1771464646505,-918.603616,0.00012619,2]
[405964511,1771464646515,-918.603616,0.00012619,2]
[405964512,1771464646524,-330.08,0.00012619,2]
[405964513,1771464646535,-200.66,0.0001266,2]
[405964514,1771464646546,-600.0,0.00012733,2]
[405964515,1771464646555,-266.53,0.00012733,2]
[405964516,1771464646565,-3852.93329581,0.00012757,2]
[405964517,1771464646574,-151.0,0.00012771,2]
[405964518,1771464646584,-209.40437684,0.00012774,2]
[405964519,1771464646594,-332.60791905,0.00012774,2]
[405964520,1771464646603,-251.11897888,0.00012774,2]
[405964521,1771464646612,-2581.0,0.000128,2]
[405964522,1771464646623,-2000.0,0.000128,2]
[405964523,1771464646632,-2000.0,0.000128,2]
[405964524,1771464646642,-2000.0,0.000128,2]
[405964525,1771464646651,-1000.0,0.00012831,2]
[405964526,1771464646661,-271.5,0.00012877,2]
[405964527,1771464646670,-200.0,0.00012968,2]
[405964528,1771464646680,-5623.94740036,0.00013,2]
[405964529,1771464646689,-500.0,0.00013,15]
[405964530,1771464646699,-500.0,0.00013,2]
[405964531,1771464646708,-500.0,0.00013,2]
[405964532,1771464646717,-500.0,0.00013,2]
[405964533,1771464646727,-500.0,0.00013,2]
[405964534,1771464646736,-500.0,0.00013,2]
[405964535,1771464646745,-500.0,0.00013,2]